[Event "57th Biel Festival ATO 2024"]
[Site "Biel"]
[Date "2024.07.17"]
[Round "2.41"]
[White "Akhmediyar, Yernur"]
[Black "Kern, Jesper"]
[Result "1-0"]
[ECO "A16"]
[WhiteElo "1751"]
[BlackElo "1569"]
[Annotator "NA RC"]
[PlyCount "70"]
[EventDate "2024.07.03"]
[EventType "swiss"]
[EventCountry "SUI"]
[SourceTitle "playchess.com"]
[Source "ChessBase"]
[SourceQuality "1"]
[TimeControl "40/5400+30:1800+30"]

1. c4 {[%emt 0:00:30]} Nf6 {[%emt 0:00:47]} 2. Nc3 {[%emt 0:00:31]} g6 {[%emt 0:00:12]} 3. g3 {[%emt 0:00:35]} Bg7 {[%emt 0:00:15]} 4. Bg2 {[%emt 0:00:27]} d6 {[%emt 0:00:25]} 5. d3 {[%emt 0:00:43]} O-O {[%emt 0:00:42]} 6. h3 {[%emt 0:03:25]} e5 {[%emt 0:02:22]} 7. e3 {[%emt 0:00:35]} Re8 {[%emt 0:01:01]} 8. Nge2 {[%emt 0:00:23]} Nc6 {[%emt 0:01:03]} 9. O-O {[%emt 0:00:24]} Bd7 {[%emt 0:01:58]} 10. Rb1 {[%emt 0:02:25]} Rb8 {[%emt 0:00:52]} 11. b4 {[%emt 0:01:38]} a6 {[%emt 0:01:41]} 12. a4 {[%emt 0:01:41]} Ne7 {[%emt 0:07:00]} 13. a5 {[%emt 0:07:25]} Bc6 {[%emt 0:02:26]} 14. e4 {[%emt 0:01:02]} Bd7 {[%emt 0:02:35]} 15. Be3 {[%emt 0:04:07]} Be6 {[%emt 0:01:37]} 16. Qc2 {[%emt 0:10:06]} Nd7 {[%emt 0:03:55]} 17. f4 {[%emt 0:08:23]} f5 {[%emt 0:02:37]} 18. Nd5 {[%emt 0:08:40]} c6 {[%emt 0:05:38]} 19. Nb6 {[%emt 0:05:14]} Nxb6 {[%emt 0:01:06]} 20. Bxb6 {[%emt 0:00:13]} Qd7 {[%emt 0:00:22]} 21. Kh2 {[%emt 0:03:01]} Rf8 {[%emt 0:00:34]} 22. Rbd1 {[%emt 0:01:06]} Rbc8 {[%emt 0:10:30]} 23. d4 {[%emt 0:03:14]} Qe8 {[%emt 0:04:35]} 24. c5 {[%emt 0:04:42]} exd4 {[%emt 0:00:38]} 25. cxd6 {[%emt 0:00:59]} fxe4 {[%emt 0:04:09]} 26. dxe7 {[%emt 0:00:33]} Qxe7 {[%emt 0:03:24]} 27. Nxd4 {[%emt 0:00:56]} Bxd4 {[%emt 0:01:51]} 28. Rxd4 {[%emt 0:00:30]} Qf6 {[%emt 0:01:15]} 29. Rxe4 {[%emt 0:01:43]} Qf5 {[%emt 0:01:54]} 30. Qc5 {[%emt 0:01:53]} Bd5 {[%emt 0:01:52]} 31. Re5 {[%emt 0:00:40]} Qd3 {[%emt 0:00:44]} 32. Bxd5+ {[%emt 0:00:56]} cxd5 {[%emt 0:00:16]} 33. Qxd5+ {[%emt 0:00:08]} Qxd5 {[%emt 0:00:30]} 34. Rxd5 {[%emt 0:00:06]} Rc2+ {[%emt 0:00:09]} 35. Rf2 {[%emt 0:00:10]} Rfc8 {[%emt 0:00:54]} 1-0

[Event "57th Biel Festival ATO 2024"]
[Site "Biel"]
[Date "2024.07.17"]
[Round "2.42"]
[White "Hansen, Michael Bo"]
[Black "Wolffs, Walter"]
[Result "1-0"]
[ECO "A60"]
[WhiteElo "1759"]
[BlackElo "1544"]
[Annotator "NA RC"]
[PlyCount "65"]
[EventDate "2024.07.03"]
[EventType "swiss"]
[EventCountry "SUI"]
[SourceTitle "playchess.com"]
[Source "ChessBase"]
[SourceQuality "1"]
[TimeControl "40/5400+30:1800+30"]

1. d4 {[%emt 0:00:05]} Nf6 {[%emt 0:00:44]} 2. c4 {[%emt 0:00:18]} c5 {[%emt 0:00:35]} 3. d5 {[%emt 0:00:37]} d6 {[%emt 0:00:07]} 4. Nc3 {[%emt 0:00:47]} e6 {[%emt 0:00:07]} 5. e4 {[%emt 0:01:38]} Be7 {[%emt 0:00:11]} 6. Bd3 {[%emt 0:01:37]} e5 {[%emt 0:00:09]} 7. f4 {[%emt 0:01:49]} Bg4 {[%emt 0:01:59]} 8. Qb3 {[%emt 0:01:21]} Bc8 {[%emt 0:04:17]} 9. fxe5 {[%emt 0:00:45]} dxe5 {[%emt 0:01:30]} 10. Nf3 {[%emt 0:01:08]} Ng4 {[%emt 0:00:20]} 11. O-O {[%emt 0:01:46]} a5 {[%emt 0:04:16]} 12. h3 {[%emt 0:00:56]} Nf6 {[%emt 0:02:53]} 13. Nxe5 {[%emt 0:00:42]} Bd6 {[%emt 0:00:05]} 14. Nf3 {[%emt 0:00:38]} Nh5 {[%emt 0:00:24]} 15. e5 {[%emt 0:01:25]} Be7 {[%emt 0:00:08]} 16. d6 {[%emt 0:01:26]} Bh4 {[%emt 0:00:06]} 17. Nd5 {[%emt 0:07:38]} Na6 {[%emt 0:01:53]} 18. Nb6 {[%emt 0:05:55]} Rb8 {[%emt 0:03:52]} 19. Nxc8 {[%emt 0:00:46]} Rxc8 {[%emt 0:00:12]} 20. Qxb7 {[%emt 0:00:49]} Nb4 {[%emt 0:00:07]} 21. Nxh4 {[%emt 0:00:35]} O-O {[%emt 0:00:37]} 22. Nf5 {[%emt 0:05:10]} Nxd3 {[%emt 0:03:12]} 23. Qxc8 {[%emt 0:02:36]} Qxc8 {[%emt 0:02:13]} 24. Ne7+ {[%emt 0:00:08]} Kh8 {[%emt 0:00:02]} 25. Nxc8 {[%emt 0:00:25]} Rxc8 {[%emt 0:00:10]} 26. Rxf7 {[%emt 0:02:37]} Kg8 {[%emt 0:00:06]} 27. Rc7 {[%emt 0:03:31]} Rf8 {[%emt 0:00:06]} 28. d7 {[%emt 0:08:17]} Nhf4 {[%emt 0:03:37]} 29. Bxf4 {[%emt 0:00:55]} Nxf4 {[%emt 0:00:15]} 30. Rc8 {[%emt 0:00:35]} Ne6 {[%emt 0:00:06]} 31. Rf1 {[%emt 0:00:52]} Rd8 {[%emt 0:00:11]} 32. Rxd8+ {[%emt 0:00:51]} Nxd8 {[%emt 0:00:06]} 33. e6 {[%emt 0:01:02]} 1-0

[Event "57th Biel Festival ATO 2024"]
[Site "Biel"]
[Date "2024.07.18"]
[Round "3.1"]
[White "Kulikov, Mikhail L"]
[Black "Wenger, Arejou"]
[Result "1-0"]
[ECO "E15"]
[WhiteElo "1954"]
[BlackElo "1875"]
[Annotator "RC"]
[PlyCount "65"]
[EventDate "2024.07.03"]
[EventType "swiss"]
[EventCountry "SUI"]
[SourceTitle "playchess.com"]
[Source "ChessBase"]
[SourceQuality "1"]
[TimeControl "40/5400+30:1800+30"]

1. Nf3 {[%emt 0:00:31]} Nf6 {[%emt 0:00:09]} 2. c4 {[%emt 0:00:15]} e6 {[%emt 0:00:21]} 3. d4 {[%emt 0:01:29]} b6 {[%emt 0:00:11]} 4. g3 {[%emt 0:01:31]} Ba6 {[%emt 0:00:16]} 5. b3 {[%emt 0:00:20]} Bb4+ {[%emt 0:00:15]} 6. Bd2 {[%emt 0:00:06]} Be7 {[%emt 0:00:07]} 7. Bg2 {[%emt 0:00:04]} O-O {[%emt 0:02:27]} 8. O-O {[%emt 0:03:09]} d5 {[%emt 0:02:41]} 9. Ne5 {[%emt 0:01:31]} Bb7 {[%emt 0:02:16]} 10. Nc3 {[%emt 0:02:32]} Nbd7 {[%emt 0:04:08]} 11. Bf4 {[%emt 0:07:52]} Ne4 {[%emt 0:22:21]} 12. Nxe4 {[%emt 0:13:01]} dxe4 {[%emt 0:02:15]} 13. Qc2 {[%emt 0:00:52]} f5 {[%emt 0:07:23]} 14. Rad1 {[%emt 0:03:32]} Bf6 {[%emt 0:05:05]} 15. f3 {[%emt 0:14:37]} Bxe5 {[%emt 0:10:00]} 16. dxe5 {[%emt 0:01:12]} exf3 {[%emt 0:02:21]} 17. exf3 {[%emt 0:00:22]} Qe7 {[%emt 0:01:14]} 18. Qc3 {[%emt 0:03:11]} Rad8 {[%emt 0:09:02]} 19. b4 {[%emt 0:08:41]} c5 {[%emt 0:03:40]} 20. b5 {[%emt 0:02:18]} g5 {[%emt 0:02:42]} 21. Bc1 {[%emt 0:01:21]} f4 {[%emt 0:02:43]} 22. Rd6 {[%emt 0:03:56]} Rf5 {[%emt 0:04:33]} 23. Rfd1 {[%emt 0:10:34]} Rxe5 {[%emt 0:03:23]} 24. Bb2 {[%emt 0:03:32]} Re2 {[%emt 0:06:39]} 25. Qh8+ {[%emt 0:01:30]} Kf7 {[%emt 0:00:04]} 26. Qxh7+ {[%emt 0:01:08]} Kf8 {[%emt 0:01:09]} 27. Qh8+ {[%emt 0:00:47]} Kf7 {[%emt 0:00:07]} 28. Qg7+ {[%emt 0:00:27]} Ke8 {[%emt 0:00:05]} 29. Qg8+ {[%emt 0:01:12]} Qf8 {[%emt 0:00:26]} 30. Qxf8+ {[%emt 0:02:59]} Kxf8 {[%emt 0:00:20]} 31. Bf6 {[%emt 0:02:24]} Nxf6 {[%emt 0:01:17]} 32. Rxd8+ {[%emt 0:00:11]} Ke7 {[%emt 0:00:14]} 33. Rb8 {[%emt 0:00:23]} 1-0

[Event "57th Biel Festival ATO 2024"]
[Site "Biel"]
[Date "2024.07.18"]
[Round "3.2"]
[White "Schneuwly, Achim"]
[Black "Kuenzi, Anton"]
[Result "0-1"]
[ECO "A05"]
[WhiteElo "1933"]
[BlackElo "1862"]
[Annotator "RC"]
[PlyCount "92"]
[EventDate "2024.07.03"]
[EventType "swiss"]
[EventCountry "SUI"]
[SourceTitle "playchess.com"]
[Source "ChessBase"]
[SourceQuality "1"]
[TimeControl "40/5400+30:1800+30"]

1. Nf3 {[%emt 1:31:00]} Nf6 {[%emt 1:31:00]} 2. e3 {[%emt 0:00:30]} g6 {[%emt 0:00:30]} 3. b4 {[%emt 0:00:30]} Bg7 {[%emt 0:00:30]} 4. Bb2 {[%emt 0:00:30]} O-O {[%emt 0:00:30]} 5. Be2 {[%emt 0:00:30]} a5 {[%emt 0:00:30]} 6. b5 {[%emt 0:00:30]} a4 {[%emt 0:00:30]} 7. d4 {[%emt 0:00:30]} d5 {[%emt 0:00:30]} 8. c4 {[%emt 0:00:30]} Ne4 {[%emt 0:00:30]} 9. O-O {[%emt 0:00:30]} dxc4 {[%emt 0:00:30]} 10. Bxc4 {[%emt 0:00:30]} Nd6 {[%emt 0:00:30]} 11. Qe2 {[%emt 0:00:30]} Nxc4 {[%emt 0:00:30]} 12. Qxc4 {[%emt 0:00:30]} Be6 {[%emt 0:00:30]} 13. Qe2 {[%emt 0:00:30]} c6 {[%emt 0:00:30]} 14. Ba3 {[%emt 0:00:30]} Qa5 {[%emt 0:00:30]} 15. Nbd2 {[%emt 0:00:30]} cxb5 {[%emt 0:00:30]} 16. Rfb1 {[%emt 0:00:30]} Bd7 {[%emt 0:00:30]} 17. Bxe7 {[%emt 0:00:30]} Rc8 {[%emt 0:00:30]} 18. Bb4 {[%emt 0:00:30]} Qc7 {[%emt 0:00:30]} 19. h3 {[%emt 0:00:30]} Na6 {[%emt 0:00:30]} 20. Ba3 {[%emt 0:00:30]} Qc3 {[%emt 0:00:30]} 21. Bd6 {[%emt 0:00:30]} f5 {[%emt 0:00:30]} 22. Ne5 {[%emt 0:00:30]} Bxe5 {[%emt 0:00:30]} 23. dxe5 {[%emt 0:00:30]} Nc5 {[%emt 0:00:30]} 24. e4 {[%emt 0:00:30]} Qd3 {[%emt 0:00:30]} 25. Qxd3 {[%emt 0:00:30]} Nxd3 {[%emt 0:00:30]} 26. exf5 {[%emt 0:00:30]} gxf5 {[%emt 0:00:30]} 27. Nf3 {[%emt 0:00:30]} Rc4 {[%emt 0:00:30]} 28. Rd1 {[%emt 0:00:30]} Nf4 {[%emt 0:00:30]} 29. Rab1 {[%emt 0:00:30]} Ne2+ {[%emt 0:00:30]} 30. Kh2 {[%emt 0:00:30]} Nc3 {[%emt 0:00:30]} 31. Re1 {[%emt 0:00:30]} Nxb1 {[%emt 0:00:30]} 32. Rxb1 {[%emt 0:00:30]} h6 {[%emt 0:00:30]} 33. e6 {[%emt 0:00:30]} Bxe6 {[%emt 0:00:30]} 34. Rxb5 {[%emt 0:00:30]} Rc6 {[%emt 0:00:30]} 35. Bf4 {[%emt 0:00:30]} Bxa2 {[%emt 0:00:30]} 36. Ne5 {[%emt 0:00:30]} Re6 {[%emt 0:00:30]} 37. Rxb7 {[%emt 0:00:30]} Bd5 {[%emt 0:00:30]} 38. Rb5 {[%emt 0:00:30]} Be4 {[%emt 0:00:30]} 39. f3 {[%emt 0:00:30]} Bc2 {[%emt 0:00:30]} 40. Rc5 {[%emt 0:00:30]} Bb3 {[%emt 0:00:30]} 41. Nc6 {[%emt 0:30:30]} a3 {[%emt 0:30:30]} 42. Nd4 {[%emt 0:00:30]} Rb6 {[%emt 0:00:30]} 43. Be5 {[%emt 0:00:30]} a2 {[%emt 0:00:30]} 44. Rc7 {[%emt 0:00:30]} a1=Q {[%emt 0:00:30]} 45. Rg7+ {[%emt 0:00:30]} Kf8 {[%emt 0:00:30]} 46. Ne6+ {[%emt 0:00:30]} Bxe6 {[%emt 0:00:30]} 0-1

[Event "57th Biel Festival ATO 2024"]
[Site "Biel"]
[Date "2024.07.18"]
[Round "3.3"]
[White "Nergard, Ole-Kristian"]
[Black "Andrzejewska, Anna"]
[Result "0-1"]
[ECO "B07"]
[WhiteElo "1830"]
[BlackElo "1933"]
[Annotator "RC"]
[PlyCount "70"]
[EventDate "2024.07.03"]
[EventType "swiss"]
[EventCountry "SUI"]
[SourceTitle "playchess.com"]
[Source "ChessBase"]
[SourceQuality "1"]
[TimeControl "40/5400+30:1800+30"]

1. d4 {[%emt 0:04:51]} Nf6 {[%emt 0:00:11]} 2. Nc3 {[%emt 0:00:53]} g6 {[%emt 0:01:32]} 3. Bf4 {[%emt 0:00:07]} Bg7 {[%emt 0:00:40]} 4. Qd2 {[%emt 0:01:06]} d6 {[%emt 0:09:46]} 5. e4 {[%emt 0:09:43]} a6 {[%emt 0:01:31]} 6. Bh6 {[%emt 0:01:22]} O-O {[%emt 0:00:37]} 7. h4 {[%emt 0:00:33]} b5 {[%emt 0:09:50]} 8. a3 {[%emt 0:10:32]} c5 {[%emt 0:05:10]} 9. Bxg7 {[%emt 0:03:39]} Kxg7 {[%emt 0:00:53]} 10. f3 {[%emt 0:00:17]} cxd4 {[%emt 0:04:35]} 11. Qxd4 {[%emt 0:00:04]} Nc6 {[%emt 0:01:00]} 12. Qd2 {[%emt 0:00:25]} h5 {[%emt 0:03:00]} 13. Nh3 {[%emt 0:01:53]} Qa5 {[%emt 0:06:18]} 14. Rd1 {[%emt 0:07:41]} b4 {[%emt 0:11:04]} 15. Nd5 {[%emt 0:14:10]} bxa3 {[%emt 0:03:13]} 16. Qxa5 {[%emt 0:04:15]} Nxa5 {[%emt 0:00:16]} 17. bxa3 {[%emt 0:00:12]} Nxd5 {[%emt 0:05:57]} 18. Rxd5 {[%emt 0:01:26]} Nb7 {[%emt 0:00:54]} 19. Nf4 {[%emt 0:01:30]} e5 {[%emt 0:04:17]} 20. Nh3 {[%emt 0:02:32]} Be6 {[%emt 0:00:48]} 21. Rd2 {[%emt 0:00:14]} Rfc8 {[%emt 0:01:00]} 22. Nf2 {[%emt 0:01:58]} Rc3 {[%emt 0:01:51]} 23. Nd3 {[%emt 0:07:57]} Rxa3 {[%emt 0:00:43]} 24. Nb4 {[%emt 0:00:47]} a5 {[%emt 0:02:13]} 25. Nd5 {[%emt 0:01:05]} Bxd5 {[%emt 0:04:46]} 26. Rxd5 {[%emt 0:00:09]} Ra2 {[%emt 0:04:59]} 27. g4 {[%emt 0:03:24]} Rxc2 {[%emt 0:03:31]} 28. gxh5 {[%emt 0:01:09]} gxh5 {[%emt 0:02:56]} 29. Be2 {[%emt 0:01:44]} a4 {[%emt 0:01:34]} 30. f4 {[%emt 0:00:15]} a3 {[%emt 0:01:56]} 31. fxe5 {[%emt 0:00:30]} a2 {[%emt 0:03:45]} 32. Rg1+ {[%emt 0:00:11]} Kf8 {[%emt 0:01:15]} 33. exd6 {[%emt 0:00:41]} a1=Q+ {[%emt 0:00:22]} 34. Bd1 {[%emt 0:00:44]} Qc3+ {[%emt 0:00:27]} 35. Kf1 {[%emt 0:00:12]} Qh3+ {[%emt 0:00:22]} 0-1

[Event "57th Biel Festival ATO 2024"]
[Site "Biel"]
[Date "2024.07.18"]
[Round "3.4"]
[White "Conrad, Vincent"]
[Black "Haas, Anthony"]
[Result "1/2-1/2"]
[ECO "E18"]
[WhiteElo "1931"]
[BlackElo "1824"]
[Annotator "NA RC"]
[PlyCount "40"]
[EventDate "2024.07.03"]
[EventType "swiss"]
[EventCountry "SUI"]
[SourceTitle "playchess.com"]
[Source "ChessBase"]
[SourceQuality "1"]
[TimeControl "40/5400+30:1800+30"]

1. Nf3 {[%emt 0:00:10]} d5 {[%emt 0:00:04]} 2. d4 {[%emt 0:00:11]} e6 {[%emt 0:00:10]} 3. c4 {[%emt 0:00:14]} Nf6 {[%emt 0:00:05]} 4. g3 {[%emt 0:00:20]} Be7 {[%emt 0:00:10]} 5. Bg2 {[%emt 0:00:08]} O-O {[%emt 0:00:13]} 6. Qc2 {[%emt 0:00:55]} b6 {[%emt 0:00:27]} 7. O-O {[%emt 0:00:56]} Bb7 {[%emt 0:00:18]} 8. Ne5 {[%emt 0:07:00]} Nbd7 {[%emt 0:02:15]} 9. Nc3 {[%emt 0:06:49]} c5 {[%emt 0:04:46]} 10. Nxd7 {[%emt 0:07:18]} Qxd7 {[%emt 0:00:44]} 11. dxc5 {[%emt 0:02:21]} bxc5 {[%emt 0:01:42]} 12. Rd1 {[%emt 0:00:40]} Rfd8 {[%emt 0:10:58]} 13. cxd5 {[%emt 0:06:44]} exd5 {[%emt 0:01:11]} 14. Bg5 {[%emt 0:00:30]} Qe6 {[%emt 0:04:00]} 15. Nb5 {[%emt 0:07:31]} Rd7 {[%emt 0:12:18]} 16. Rac1 {[%emt 0:04:07]} a6 {[%emt 0:04:57]} 17. Nc3 {[%emt 0:02:48]} Rad8 {[%emt 0:06:22]} 18. e3 {[%emt 0:06:07]} h6 {[%emt 0:03:27]} 19. Bxf6 {[%emt 0:00:30]} Qxf6 {[%emt 0:01:41]} 20. Na4 {[%emt 0:10:12]} Qe6 {[%emt 0:17:57]} 1/2-1/2

[Event "57th Biel Festival ATO 2024"]
[Site "Biel"]
[Date "2024.07.18"]
[Round "3.5"]
[White "Oestmann, Lukas"]
[Black "Mohr, Jan"]
[Result "1-0"]
[ECO "B76"]
[WhiteElo "1926"]
[BlackElo "1824"]
[Annotator "NA RC"]
[PlyCount "63"]
[EventDate "2024.07.03"]
[EventType "swiss"]
[EventCountry "SUI"]
[SourceTitle "playchess.com"]
[Source "ChessBase"]
[SourceQuality "1"]
[TimeControl "40/5400+30:1800+30"]

1. e4 {[%emt 0:00:06]} c5 {[%emt 0:00:09]} 2. Nf3 {[%emt 0:00:05]} d6 {[%emt 0:00:03]} 3. d4 {[%emt 0:00:03]} cxd4 {[%emt 0:00:03]} 4. Nxd4 {[%emt 0:00:03]} Nf6 {[%emt 0:00:05]} 5. Nc3 {[%emt 0:00:03]} g6 {[%emt 0:00:03]} 6. Be3 {[%emt 0:00:03]} Bg7 {[%emt 0:00:04]} 7. f3 {[%emt 0:00:02]} O-O {[%emt 0:00:05]} 8. Qd2 {[%emt 0:00:04]} Nc6 {[%emt 0:00:16]} 9. g4 {[%emt 0:00:04]} Be6 {[%emt 0:00:12]} 10. O-O-O {[%emt 0:00:12]} Nxd4 {[%emt 0:00:29]} 11. Bxd4 {[%emt 0:00:06]} Qc7 {[%emt 0:05:05]} 12. h4 {[%emt 0:01:30]} a6 {[%emt 0:09:41]} 13. h5 {[%emt 0:04:55]} b5 {[%emt 0:01:44]} 14. hxg6 {[%emt 0:03:56]} fxg6 {[%emt 0:00:49]} 15. Qh2 {[%emt 0:17:45]} Rf7 {[%emt 0:02:34]} 16. e5 {[%emt 0:03:09]} dxe5 {[%emt 0:00:50]} 17. Bxe5 {[%emt 0:00:42]} Qb6 {[%emt 0:05:44]} 18. Bd3 {[%emt 0:04:15]} b4 {[%emt 0:04:23]} 19. Ne4 {[%emt 0:08:37]} Bxa2 {[%emt 0:10:32]} 20. b3 {[%emt 0:07:05]} Rc8 {[%emt 0:05:55]} 21. Nd2 {[%emt 0:10:45]} Bxb3 {[%emt 0:20:38]} 22. Nxb3 {[%emt 0:00:14]} Qe3+ {[%emt 0:02:17]} 23. Kb1 {[%emt 0:01:10]} Qxf3 {[%emt 0:01:00]} 24. g5 {[%emt 0:03:05]} Nh5 {[%emt 0:01:33]} 25. Bxg7 {[%emt 0:00:52]} Rxg7 {[%emt 0:04:59]} 26. Qe5 {[%emt 0:00:51]} Qc6 {[%emt 0:01:16]} 27. Be4 {[%emt 0:01:20]} Qc3 {[%emt 0:01:23]} 28. Qa5 {[%emt 0:06:30]} Nf4 {[%emt 0:03:43]} 29. Rd8+ {[%emt 0:01:44]} Kf7 {[%emt 0:00:18]} 30. Rf1 {[%emt 0:02:14]} Rxd8 {[%emt 0:01:31]} 31. Qxd8 {[%emt 0:01:21]} Qe5 {[%emt 0:01:22]} 32. Qd2 {[%emt 0:01:36]} 1-0

[Event "57th Biel Festival ATO 2024"]
[Site "Biel"]
[Date "2024.07.18"]
[Round "3.6"]
[White "Ribera Caro, Joan"]
[Black "Noh, Jinwoo"]
[Result "0-1"]
[ECO "E05"]
[WhiteElo "1920"]
[BlackElo "1824"]
[Annotator "RC"]
[PlyCount "33"]
[EventDate "2024.07.03"]
[EventType "swiss"]
[EventCountry "SUI"]
[SourceTitle "playchess.com"]
[Source "ChessBase"]
[SourceQuality "1"]
[TimeControl "40/5400+30:1800+30"]

1. d4 {[%emt 0:00:08]} Nf6 {[%emt 0:00:22]} 2. Nf3 {[%emt 0:00:19]} d5 {[%emt 0:00:43]} 3. c4 {[%emt 0:00:16]} e6 {[%emt 0:00:57]} 4. g3 {[%emt 0:00:14]} Be7 {[%emt 0:01:42]} 5. Bg2 {[%emt 0:00:21]} O-O {[%emt 0:00:32]} 6. O-O {[%emt 0:00:19]} dxc4 {[%emt 0:00:27]} 7. Qc2 {[%emt 0:06:13]} a6 {[%emt 0:01:58]} 8. Qxc4 {[%emt 0:00:15]} b5 {[%emt 0:00:28]} 9. Qc2 {[%emt 0:00:22]} Bb7 {[%emt 0:01:01]} 10. Bf4 {[%emt 0:02:22]} Nd5 {[%emt 0:02:30]} 11. Nbd2 {[%emt 0:01:15]} Nxf4 {[%emt 0:00:27]} 12. gxf4 {[%emt 0:00:20]} Nc6 {[%emt 0:03:21]} 13. e3 {[%emt 0:02:52]} Nb4 {[%emt 0:04:12]} 14. Nb3 {[%emt 0:03:18]} Nd5 {[%emt 0:02:47]} 15. Qb1 {[%emt 0:08:01]} f5 {[%emt 0:10:04]} 16. Ne5 {[%emt 0:05:58]} Bd6 {[%emt 0:02:36]} 17. Kh1 {[%emt 0:40:12]} 0-1

[Event "57th Biel Festival ATO 2024"]
[Site "Biel"]
[Date "2024.07.18"]
[Round "3.7"]
[White "Spaeti, Kurt"]
[Black "Kuenzli, Simon"]
[Result "0-1"]
[ECO "B84"]
[WhiteElo "1804"]
[BlackElo "1919"]
[Annotator "NA RC"]
[PlyCount "48"]
[EventDate "2024.07.03"]
[EventType "swiss"]
[EventCountry "SUI"]
[SourceTitle "playchess.com"]
[Source "ChessBase"]
[SourceQuality "1"]
[TimeControl "40/5400+30:1800+30"]

1. e4 {[%emt 0:00:06]} c5 {[%emt 0:00:06]} 2. Nf3 {[%emt 0:00:07]} d6 {[%emt 0:00:09]} 3. d4 {[%emt 0:00:08]} cxd4 {[%emt 0:00:06]} 4. Nxd4 {[%emt 0:00:06]} Nf6 {[%emt 0:00:06]} 5. Nc3 {[%emt 0:00:08]} a6 {[%emt 0:00:04]} 6. Be2 {[%emt 0:01:17]} e6 {[%emt 0:00:30]} 7. Be3 {[%emt 0:01:41]} Qc7 {[%emt 0:00:50]} 8. Qd2 {[%emt 0:01:17]} b5 {[%emt 0:00:37]} 9. a3 {[%emt 0:04:37]} Bb7 {[%emt 0:00:16]} 10. f3 {[%emt 0:01:33]} Nbd7 {[%emt 0:00:28]} 11. g4 {[%emt 0:04:45]} Nb6 {[%emt 0:02:05]} 12. g5 {[%emt 0:07:21]} Nfd7 {[%emt 0:00:26]} 13. O-O-O {[%emt 0:06:55]} Rc8 {[%emt 0:03:43]} 14. Kb1 {[%emt 0:14:45]} Ne5 {[%emt 0:01:26]} 15. Rhe1 {[%emt 0:12:12]} Nbc4 {[%emt 0:01:09]} 16. Bxc4 {[%emt 0:02:05]} Nxc4 {[%emt 0:00:36]} 17. Qd3 {[%emt 0:02:39]} Nxa3+ {[%emt 0:01:24]} 18. Ka1 {[%emt 0:06:41]} Qa5 {[%emt 0:18:21]} 19. Nb3 {[%emt 0:05:26]} Nxc2+ {[%emt 0:01:54]} 20. Kb1 {[%emt 0:00:08]} Nxe1 {[%emt 0:04:55]} 21. Nxa5 {[%emt 0:04:54]} Nxd3 {[%emt 0:00:11]} 22. Nxb7 {[%emt 0:02:19]} Ne5 {[%emt 0:01:59]} 23. Bf4 {[%emt 0:10:32]} Nc4 {[%emt 0:08:36]} 24. b3 {[%emt 0:05:54]} Rc7 {[%emt 0:08:05]} 0-1

[Event "57th Biel Festival ATO 2024"]
[Site "Biel"]
[Date "2024.07.18"]
[Round "3.8"]
[White "Kalbermatter, Philipp"]
[Black "Meshach, Felix"]
[Result "1/2-1/2"]
[ECO "B33"]
[WhiteElo "1912"]
[BlackElo "1773"]
[Annotator "ChessBase"]
[PlyCount "76"]
[EventDate "2024.07.03"]
[EventType "swiss"]
[EventCountry "SUI"]
[SourceTitle "playchess.com"]
[Source "ChessBase"]
[SourceQuality "1"]
[TimeControl "40/5400+30:1800+30"]

1. e4 {[%emt 0:00:12]} c5 {[%emt 0:00:10]} 2. Nf3 {[%emt 0:00:22]} Nc6 {[%emt 0:00:12]} 3. d4 {[%emt 0:00:45]} cxd4 {[%emt 0:00:11]} 4. Nxd4 {[%emt 0:00:34]} Nf6 {[%emt 0:00:08]} 5. Nc3 {[%emt 0:00:55]} e5 {[%emt 0:00:06]} 6. Ndb5 {[%emt 0:01:33]} d6 {[%emt 0:00:11]} 7. Bg5 {[%emt 0:01:39]} a6 {[%emt 0:00:16]} 8. Na3 {[%emt 0:00:24]} b5 {[%emt 0:00:18]} 9. Nd5 {[%emt 0:01:29]} Be7 {[%emt 0:00:15]} 10. Nxe7 {[%emt 0:07:06]} Nxe7 {[%emt 0:01:17]} 11. Bd3 {[%emt 0:03:14]} Be6 {[%emt 0:06:24]} 12. O-O {[%emt 0:08:09]} d5 {[%emt 0:02:42]} 13. exd5 {[%emt 0:15:36]} Bxd5 {[%emt 0:06:58]} 14. Bxf6 {[%emt 0:05:05]} gxf6 {[%emt 0:00:20]} 15. c4 {[%emt 0:01:10]} bxc4 {[%emt 0:02:10]} 16. Bxc4 {[%emt 0:00:44]} Rg8 {[%emt 0:04:30]} 17. Bxd5 {[%emt 0:01:57]} Nxd5 {[%emt 0:04:26]} 18. Qa4+ {[%emt 0:02:20]} Kf8 {[%emt 0:02:27]} 19. Rad1 {[%emt 0:02:23]} Ra7 {[%emt 0:06:08]} 20. Qe4 {[%emt 0:08:16]} Rd7 {[%emt 0:02:25]} 21. Nc4 {[%emt 0:02:12]} Rg6 {[%emt 0:10:18]} 22. g3 {[%emt 0:09:10]} Nf4 {[%emt 0:05:49]} 23. Ne3 {[%emt 0:03:57]} Nh3+ {[%emt 0:06:43]} 24. Kg2 {[%emt 0:01:47]} Ng5 {[%emt 0:04:05]} 25. Qb4+ {[%emt 0:01:19]} Kg8 {[%emt 0:00:47]} 26. Qb7 {[%emt 0:06:22]} Rxd1 {[%emt 0:05:56]} 27. Rxd1 {[%emt 0:00:17]} Qe8 {[%emt 0:02:57]} 28. Nf5 {[%emt 0:00:55]} Ne6 {[%emt 0:02:06]} 29. Ne7+ {[%emt 0:00:57]} Kg7 {[%emt 0:00:18]} 30. Nxg6 {[%emt 0:00:15]} hxg6 {[%emt 0:00:11]} 31. Qd7 {[%emt 0:03:53]} Qb8 {[%emt 0:02:28]} 32. Rd2 {[%emt 0:04:00]} Nd4 {[%emt 0:02:13]} 33. Rxd4 {[%emt 0:01:00]} exd4 {[%emt 0:00:09]} 34. Qxd4 {[%emt 0:00:07]} Qb5 {[%emt 0:01:30]} 35. b4 {[%emt 0:02:49]} Qc6+ {[%emt 0:01:21]} 36. Kg1 {[%emt 0:02:28]} Qc1+ {[%emt 0:00:28]} 37. Kg2 {[%emt 0:00:07]} Qc6+ {[%emt 0:00:07]} 38. Kg1 {[%emt 0:00:43]} Qc1+ {[%emt 0:00:16]} 1/2-1/2